bitfinex-derivatives/quotes_ETHF0:USTF0_20240910
["timestamp","ask_amount","ask_price","bid_price","bid_amount"]
[1725977935162,0.429,2330.9,2330.5,0.42905]
[1725977935562,1.46444,2331.3,2330.2,4.61511]
[1725977935563,10.91074658,2330.8,2330.2,4.61511]
[1725977935765,0.42907,2330.5,2329.8,4.5906]
[1725977935963,0.7985,2330.7,2329.8,4.5906]
[1725977935964,0.42909,2330.4,2329.8,4.186]
[1725977936261,0.42909,2330.4,2330.1,0.42914]
[1725977936455,10.54646386,2330.6,2329.8,4.186]
[1725977936456,0.42908,2330.5,2329.8,4.186]
[1725977936655,0.42907,2330.5,2330.1,0.42913]
[1725977936860,0.42907,2330.5,2329.8,4.186]
[1725977937056,0.42909,2330.4,2330.1,0.42913]
[1725977937251,0.42908,2330.5,2330.2,0.42911]
[1725977937458,10.97552386,2330.6,2330.3,0.42909]
[1725977937655,10.54646386,2330.6,2329.8,5.25899]
[1725977937855,0.42907,2330.5,2330.2,0.42911]
[1725977938754,0.42907,2330.5,2329.8,4.186]
[1725977938959,0.4291,2330.4,2329.8,4.186]
[1725977939166,0.4291,2330.4,2330.1,0.42913]
[1725977939659,10.54646386,2330.6,2329.7,4.1002]
[1725977939863,10.54646386,2330.6,2329.9,0.42916]
[1725977939864,0.42913,2330.2,2329.9,0.42916]
[1725977940258,1.07263,2330.6,2329.7,4.1002]
[1725977940566,0.42918,2329.9,2329.6,0.81722]
[1725977940757,1.07284,2330.2,2329.6,0.81722]
[1725977940961,0.42922,2329.7,2329.4,0.42926]
[1725977941566,1.8224,2330.1,2329.3,0.3725]
[1725977941762,0.4292,2329.8,2329.5,0.42924]
[1725977941957,0.42929,2329.3,2329.0,0.42933]
[1725977942371,15.00476488,2329.2,2328.6,0.7694]
[1725977942557,15.00476488,2329.2,2328.6,0.3725]
[1725977942558,0.3676,2329.1,2328.6,0.3725]
[1725977942759,0.3676,2329.1,2328.2,4.5829]
[1725977943064,0.42938,2328.8,2328.2,4.5829]
[1725977943263,0.3676,2329.1,2328.4,3.71]
[1725977943669,0.81082,2329.2,2328.6,1.07354]
[1725977943670,0.3815,2329.2,2328.6,1.07354]
[1725977943863,0.3815,2329.2,2328.7,0.3723]
[1725977944168,0.3815,2329.2,2328.4,3.71]
[1725977944364,0.4019,2329.6,2328.5,0.3723]
[1725977944564,0.42926,2329.5,2328.6,1.07351]
[1725977944867,0.42926,2329.5,2328.8,1.07346]
[1725977944868,10.63879235,2329.5,2328.8,1.07346]
[1725977945059,0.42918,2329.9,2329.6,0.42922]
[1725977945264,0.42918,2329.9,2329.6,0.42923]
[1725977945467,4.292,2329.8,2329.2,0.3723]
[1725977945671,10.97042945,2329.9,2329.1,4.186]
[1725977945870,10.97042945,2329.7,2328.9,0.4021]
[1725977946177,10.97042945,2330.0,2329.1,3.71]
[1725977946463,0.42919,2329.9,2329.1,3.71]
[1725977946661,10.85578453,2330.0,2329.5,0.42924]
[1725977946860,10.85578453,2329.8,2329.4,0.42926]
[1725977947064,0.42921,2329.7,2329.4,0.42926]
[1725977947569,0.42923,2329.7,2329.1,3.71]
[1725977947868,0.4292,2329.8,2329.5,0.42925]
[1725977948064,0.42919,2329.9,2329.6,0.42923]
[1725977948271,11.26189321,2329.9,2329.6,0.42923]
[1725977948473,11.26186321,2330.0,2329.7,0.4292]
[1725977948765,0.42917,2330.0,2329.7,0.4292]
[1725977948964,0.3773,2330.1,2329.4,3.71]
[1725977949164,0.3773,2330.1,2328.8,4.186]
[1725977949165,1.07307,2329.7,2328.8,4.186]
[1725977949368,1.07313,2329.5,2328.9,0.42934]
[1725977949560,0.3961,2329.4,2328.8,4.186]
[1725977949765,0.3961,2329.4,2329.1,0.42932]
[1725977949766,11.67375198,2329.4,2329.1,0.42932]
[1725977949963,11.67375198,2329.4,2328.8,5.25944]
[1725977949964,11.24447198,2329.4,2328.8,5.25944]
[1725977950171,4.144,2329.9,2329.1,1.07331]
[1725977950371,0.42917,2330.0,2329.2,0.7681]
[1725977950669,0.42917,2330.0,2329.7,0.42921]
[1725977950870,0.42918,2329.9,2329.6,0.42922]
[1725977951058,11.51127257,2330.2,2329.2,0.7681]
[1725977951059,0.4292,2329.8,2329.2,0.7681]
[1725977951263,0.42917,2330.0,2329.7,0.4292]
[1725977951468,0.7475,2330.2,2329.6,0.42922]
[1725977951469,0.42918,2329.9,2329.6,0.42922]
[1725977951757,1.0729,2330.0,2329.2,0.7681]
[1725977951962,0.4292,2329.8,2329.6,0.42923]
[1725977952162,0.42922,2329.7,2329.5,0.42924]
[1725977952868,1.82034,2330.2,2329.6,0.42923]
[1725977952869,0.42921,2329.8,2329.6,0.42923]
[1725977953068,0.42921,2329.8,2329.5,0.42924]
[1725977953469,0.42921,2329.8,2329.6,0.42923]
[1725977953670,0.42921,2329.8,2329.2,0.7681]
[1725977953868,0.42921,2329.8,2329.6,0.42923]
[1725977954071,0.42919,2329.9,2329.6,0.42923]
[1725977954370,0.4292,2329.8,2329.6,0.42923]
[1725977954868,1.82034,2330.2,2329.3,1.28632271]
[1725977955067,0.42922,2329.7,2329.2,0.7681]
[1725977955261,10.90786896,2329.9,2329.2,0.7681]
[1725977955462,0.42923,2329.7,2329.4,0.42925]
[1725977955857,0.42923,2329.7,2329.5,0.42925]
[1725977956265,0.42919,2329.9,2329.7,0.42921]
[1725977956466,0.42917,2330.0,2329.8,0.42919]
[1725977956863,1.82033,2330.2,2329.7,0.4292]
[1725977957067,0.42918,2329.9,2329.7,0.4292]
[1725977957375,0.42921,2329.8,2329.6,0.42922]
[1725977957769,1.0729,2330.0,2329.2,6.02733]
[1725977957960,0.42924,2329.6,2329.2,0.7681]
[1725977958160,0.42922,2329.7,2329.5,0.42924]
[1725977958374,2.17359294,2330.1,2329.2,0.7681]
[1725977958375,1.10073294,2330.0,2329.2,0.7681]
[1725977958579,0.4292,2329.8,2329.6,0.42922]
[1725977958870,2.72395942,2330.1,2329.4,0.21277144]
[1725977958871,1.10073294,2330.1,2329.4,0.21277144]
[1725977959178,0.4292,2329.8,2329.7,0.42921]
[1725977959369,0.42918,2329.9,2329.4,1.29157781]
[1725977959769,1.84823294,2330.2,2330.0,0.42915]
[1725977959966,1.84823294,2330.2,2329.6,1.07309]
[1725977959967,1.10073294,2330.4,2329.6,1.07309]
[1725977960167,0.42915,2330.1,2330.0,0.42915]
[1725977960366,1.10073294,2330.5,2329.8,1.07299]
[1725977960569,2.72375942,2330.6,2330.2,0.42911]
[1725977960570,0.4291,2330.4,2330.2,0.42911]
[1725977960770,2.17339294,2330.6,2330.2,0.42911]
[1725977961072,0.42913,2330.2,2330.1,0.42914]
[1725977961272,0.42911,2330.3,2330.2,0.42912]
[1725977961472,1.65109942,2330.6,2330.4,0.42907]
[1725977961473,0.42906,2330.6,2330.4,0.42907]
[1725977961669,0.42906,2330.6,2330.4,0.42908]
[1725977961875,4.2912,2330.6,2329.9,0.7967]
[1725977962071,1.07267,2330.5,2329.9,0.7967]
[1725977962271,0.42913,2330.2,2330.0,0.42915]
[1725977962468,1.07267,2330.5,2329.9,0.7967]
[1725977962469,1.07272,2330.4,2329.9,0.7967]
[1725977962774,0.42913,2330.2,2330.0,0.42915]
[1725977962977,1.07279,2330.3,2329.8,0.42918]
[1725977963273,0.42916,2330.0,2329.8,0.42918]
[1725977963472,0.42916,2330.0,2329.5,4.9367]
[1725977963473,0.82403,2330.2,2330.0,0.42916]
[1725977963772,1.10073294,2330.4,2329.7,3.71]
[1725977963971,0.42911,2330.3,2330.1,0.42912]
[1725977964169,0.4291,2330.4,2330.2,0.42912]
[1725977964472,0.4291,2330.4,2329.7,4.78304]
[1725977964473,1.10073294,2330.5,2329.7,4.78304]
[1725977964688,1.10073294,2330.5,2330.2,0.4291]
[1725977964689,0.42909,2330.4,2330.2,0.4291]
[1725977964869,0.42909,2330.4,2329.7,4.78304]
[1725977964870,0.42908,2330.4,2330.1,0.42913]
[1725977965068,1.10073294,2330.6,2329.9,1.07295]
[1725977965375,1.10073294,2330.6,2330.3,0.4291]
[1725977965580,0.42908,2330.5,2330.3,0.4291]
[1725977965768,0.42909,2330.4,2330.2,0.42912]
[1725977965969,0.42908,2330.5,2330.3,0.4291]
[1725977966171,0.42909,2330.4,2330.2,0.42912]
[1725977966373,0.4291,2330.3,2330.1,0.42913]
[1725977966771,0.4291,2330.4,2330.2,0.42912]
[1725977967177,0.4291,2330.3,2330.1,0.42913]
[1725977967378,0.42909,2330.4,2330.2,0.42912]
[1725977967675,2.17337294,2330.6,2329.8,1.07297]
[1725977967676,1.10073294,2330.6,2329.8,1.07297]
[1725977967876,2.17338294,2330.6,2329.8,1.07297]
[1725977968077,2.17338294,2330.6,2330.0,0.42915]
[1725977968078,0.42913,2330.2,2330.0,0.42915]
[1725977968265,1.07267,2330.5,2329.7,3.71]
[1725977968266,1.10073294,2330.5,2329.7,3.71]
[1725977968771,10.66396259,2330.4,2329.5,6.00981]
[1725977968977,11.76469553,2330.4,2329.6,1.74397735]
[1725977969282,0.42914,2330.1,2329.9,0.42917]
[1725977969480,0.42917,2330.0,2329.8,0.42919]
[1725977969676,0.42918,2329.9,2329.7,0.4292]
[1725977969879,0.42918,2329.9,2329.8,0.42919]
[1725977970076,0.42917,2330.0,2329.5,0.7507]
[1725977970379,0.7785,2330.1,2329.5,0.7507]
[1725977970676,0.42911,2330.3,2329.7,3.3]
[1725977970879,1.65109942,2330.5,2330.0,0.42914]
[1725977970880,0.42913,2330.2,2330.0,0.42914]
[1725977971084,0.42915,2330.1,2329.9,0.42917]
[1725977971274,12.79313416,2330.4,2329.9,0.42917]
[1725977971472,0.42917,2330.0,2329.5,4.0507]
[1725977971679,0.42917,2330.0,2329.8,0.42918]
[1725977972174,0.4292,2329.8,2329.5,0.7507]
[1725977972375,1.52988294,2330.1,2329.9,0.42916]
[1725977972581,1.52988294,2330.1,2329.5,4.0507]
[1725977972582,1.46753294,2330.2,2329.5,5.1238]
[1725977972774,0.42916,2330.0,2329.9,0.42916]
[1725977972977,0.42916,2330.0,2329.6,0.67091496]
[1725977972978,0.42918,2329.9,2329.7,0.4292]
[1725977973179,2.54036294,2330.2,2329.5,0.7507]
[1725977973180,1.10073294,2330.1,2329.5,0.7507]
[1725977973479,1.10073294,2330.1,2329.0,3.41334395]
[1725977973480,2.17370294,2329.9,2329.0,1.11274644]
[1725977973682,2.17382294,2329.6,2328.9,4.186]
[1725977973987,1.65109942,2329.8,2328.8,1.19218]
[1725977973988,0.42932,2329.2,2328.8,1.19218]
[1725977974385,1.10073294,2329.3,2328.5,3.6968]
[1725977974588,1.10073294,2329.2,2328.6,0.67116361]
[1725977974898,0.42933,2329.1,2328.5,3.6709]
[1725977975079,0.42933,2329.1,2328.7,0.42938]
[1725977975278,0.42936,2329.0,2328.6,0.42941]
[1725977975586,0.42935,2329.0,2328.6,0.42941]
[1725977976089,0.42935,2329.0,2328.0,5.29874644]
[1725977976090,4.2944,2328.9,2328.0,5.29874644]
[1725977976285,0.42943,2328.6,2328.1,0.4295]
[1725977976482,0.42944,2328.5,2328.0,4.61552]
[1725977976683,0.42951,2328.2,2327.6,4.186]
[1725977976977,1.10073294,2328.4,2327.7,0.67142995]
[1725977977194,11.61881539,2328.1,2327.4,0.3722]
[1725977977488,0.7587,2328.1,2327.6,0.42959]
[1725977977677,1.10073294,2328.4,2327.6,0.42959]
[1725977977874,0.39,2328.1,2327.4,0.80183]
[1725977978080,0.39,2328.1,2327.5,0.42962]
[1725977978281,11.1853449,2328.0,2327.5,0.42962]
[1725977978489,11.1853449,2328.0,2327.4,0.80183]
[1725977978677,11.1853449,2328.0,2327.5,0.42962]
[1725977979081,10.7558149,2328.0,2327.4,0.3722]
[1725977979295,0.8092,2328.2,2327.7,0.42957]
[1725977979296,0.80919,2328.2,2327.7,0.42957]
[1725977979891,0.42951,2328.1,2327.6,0.42958]
[1725977980085,0.80919,2328.2,2327.7,0.42958]
[1725977980281,0.42951,2328.1,2327.6,0.42959]
[1725977980590,10.49166321,2328.1,2327.1,4.38150178]
[1725977980778,0.4296,2327.6,2326.9,0.3756]
[1725977981282,1.07388,2327.9,2326.9,0.3756]
[1725977981488,1.07388,2327.9,2327.0,0.4297]
[1725977981489,0.42963,2327.5,2327.0,0.4297]
[1725977981684,0.748,2327.8,2326.9,0.3756]
[1725977981994,10.63650139,2327.7,2327.1,0.42968]
[1725977982288,0.42961,2327.6,2327.2,0.42967]
[1725977982694,10.63650139,2327.7,2327.1,0.21538838]
[1725977982985,10.63650139,2327.7,2327.4,0.42963]
[1725977983192,11.06608139,2327.7,2327.3,0.42964]
[1725977983786,10.63650139,2327.7,2326.9,4.5616]
[1725977983987,0.42965,2327.4,2327.0,0.4297]
[1725977984387,0.42965,2327.4,2326.9,0.3756]
[1725977984388,1.07401,2327.6,2326.6,0.3986]
[1725977984585,1.07424,2327.1,2326.3,0.3996]
[1725977984784,0.3943,2327.0,2326.3,0.3996]
[1725977984979,0.42978,2326.7,2326.3,0.82943]
[1725977985383,0.3943,2327.0,2326.4,0.42982]
[1725977985384,0.42976,2326.8,2326.4,0.42982]
[1725977985587,0.3943,2327.0,2326.3,0.3996]
[1725977985900,11.113155,2326.9,2326.5,0.4298]
[1725977986079,11.113155,2326.9,2326.5,0.42979]
[1725977986284,10.683415,2326.9,2326.3,0.3996]
[1725977986592,10.683415,2326.9,2326.7,0.42976]
[1725977986895,0.387,2327.3,2327.0,0.42971]
[1725977987086,0.387,2327.3,2327.1,0.42968]
[1725977987286,0.387,2327.3,2327.0,0.4297]
[1725977987485,0.387,2327.3,2326.6,3.71]
[1725977988292,0.3784,2327.6,2327.2,0.42966]
[1725977988494,0.3784,2327.6,2327.3,0.42965]
[1725977988495,0.80801,2327.6,2327.3,0.42965]
[1725977988695,0.7715,2328.0,2327.0,0.57967229]
[1725977988896,0.3694,2328.0,2327.0,0.7658]
[1725977989193,0.79893,2328.0,2327.2,3.71]
[1725977989388,0.42957,2327.8,2327.2,3.71]
[1725977989700,0.42956,2327.9,2327.2,3.71]
[1725977989992,0.42959,2327.7,2327.0,0.7658]
[1725977990385,0.3694,2328.0,2327.2,0.42966]
[1725977990386,0.42961,2327.6,2327.2,0.42966]
[1725977990582,0.42962,2327.5,2327.1,40.8]
[1725977990786,0.42962,2327.5,2327.2,0.42967]
[1725977990993,4.144,2327.9,2327.5,0.42961]
[1725977991190,0.42959,2327.7,2327.1,40.8]
[1725977991394,10.51467187,2327.8,2327.1,40.8]
[1725977991590,10.89147187,2327.6,2327.0,0.4297]
[1725977991783,10.89147187,2327.6,2326.6,7.896]
[1725977991784,0.42966,2327.3,2326.6,7.896]
[1725977991990,0.42967,2327.2,2326.8,0.42974]
[1725977992197,0.3768,2327.6,2326.7,0.42976]
[1725977992198,0.42971,2327.1,2326.7,0.42976]
[1725977992492,0.42971,2327.1,2326.8,0.42974]
[1725977992687,0.42972,2327.0,2326.7,0.42977]
[1725977992993,10.98101374,2327.3,2326.8,0.42975]
[1725977993199,0.42969,2327.2,2326.8,0.42974]
[1725977993400,0.42968,2327.2,2326.5,0.4024]
[1725977993897,0.42969,2327.1,2326.8,0.42974]
[1725977994101,0.42971,2327.1,2326.8,0.42974]
[1725977994598,10.98101374,2327.3,2326.5,0.4024]
[1725977994798,10.98101374,2327.3,2326.6,1.07447]
[1725977994995,0.42962,2327.5,2327.2,0.42966]
[1725977995203,0.3882,2328.0,2326.6,1.44787]
[1725977995204,4.5322,2328.0,2326.8,3.71]
[1725977995398,10.80184287,2327.5,2327.3,0.42965]
[1725977995596,10.80184287,2327.8,2327.0,0.21693992]
[1725977995797,1.07396,2327.7,2327.1,0.3988]
[1725977995996,1.07396,2327.7,2327.2,0.42966]
[1725977996393,1.07392,2327.8,2326.8,3.71]
[1725977996605,10.76018132,2327.6,2326.7,0.3988]
[1725977996902,0.42968,2327.2,2326.9,0.42972]
[1725977997297,0.42968,2327.2,2326.8,0.42973]
[1725977997298,0.42969,2327.2,2326.8,0.42973]
[1725977997498,1.07415,2327.3,2326.5,0.4024]
[1725977997805,0.42971,2327.0,2326.5,0.4024]
[1725977997999,1.07419,2327.2,2326.6,0.42978]
[1725977998206,10.9831322,2326.9,2326.2,0.3988]
[1725977998404,0.42977,2326.7,2326.4,0.42981]
[1725977998802,0.3939,2326.7,2326.2,0.3988]
[1725977999198,0.82367,2326.7,2326.4,0.42981]
[1725977999599,0.3939,2326.7,2326.5,0.4298]
[1725977999798,0.82367,2326.7,2326.4,0.42981]
[1725978000013,0.42979,2326.6,2326.3,0.42983]
[1725978000205,0.82367,2326.7,2326.4,0.42981]
[1725978000400,0.3939,2326.7,2326.0,5.12272]
[1725978000597,0.3939,2326.7,2326.1,1.07467]
[1725978000912,0.4297,2327.1,2326.8,0.42974]
[1725978001101,0.7631,2327.3,2326.9,0.42972]
[1725978001297,0.7631,2327.3,2326.6,3.3]
[1725978001506,10.94479852,2327.1,2327.0,0.42971]
[1725978001698,0.42968,2327.2,2326.9,0.42972]
[1725978001904,0.42969,2327.1,2326.9,0.42972]
[1725978002100,0.7631,2327.3,2326.6,3.6798]
[1725978002309,4.144,2327.6,2326.7,1.4715]
[1725978002512,0.3918,2327.6,2327.4,0.42963]
[1725978002812,10.61950227,2327.5,2327.4,0.42964]
[1725978003114,10.61950227,2327.9,2327.6,0.42959]
[1725978003415,0.42948,2328.3,2327.7,3.3]
[1725978003602,0.3918,2328.4,2327.7,3.3]
[1725978003799,11.29387537,2328.3,2327.9,0.42954]
[1725978003998,11.68565537,2328.4,2327.7,3.3]
[1725978004201,0.42948,2328.3,2327.9,0.42954]
[1725978004410,10.86439537,2328.2,2327.9,0.42954]
[1725978004600,10.86439537,2328.2,2327.4,3.71]
[1725978004601,10.81648948,2328.3,2327.6,1.07401]
[1725978004807,0.3918,2328.4,2328.2,0.42949]
[1725978005013,0.3918,2328.4,2327.4,3.71]
[1725978005212,4.5132,2328.5,2328.1,0.4295]
[1725978005213,10.81648948,2328.3,2328.1,0.4295]
[1725978005398,10.81648948,2328.3,2328.0,0.42952]
[1725978005604,10.71690276,2328.4,2327.5,40.8]
[1725978005798,10.71690276,2328.4,2327.9,0.42954]
[1725978005799,0.42948,2328.3,2327.9,0.42954]
[1725978006012,4.144,2329.5,2328.1,3.71]
[1725978006311,0.3746,2329.3,2328.4,3.71]
[1725978006515,10.48156916,2329.2,2328.2,0.7421]
[1725978006710,10.85616916,2329.3,2328.2,0.7421]
[1725978006711,0.42933,2329.1,2328.6,0.4294]
[1725978007106,0.42933,2329.1,2328.6,0.42941]
[1725978007310,10.91087916,2329.2,2328.7,0.4294]
[1725978008006,0.42933,2329.1,2328.6,0.42941]
[1725978008210,10.48156916,2329.2,2328.2,0.7421]
[1725978008410,10.60003946,2329.0,2328.2,0.7421]
[1725978008619,11.02935946,2329.2,2328.6,0.4294]
[1725978008911,0.42932,2329.1,2328.6,0.42941]
[1725978009101,0.42936,2328.9,2328.5,0.42943]
[1725978009302,10.60003946,2329.1,2328.2,0.7421]
[1725978009506,0.42935,2329.0,2328.5,0.42942]
[1725978009717,0.42933,2329.1,2328.6,0.42942]
[1725978009917,0.3746,2329.3,2328.4,3.71]
[1725978010210,0.3746,2329.3,2328.2,0.7421]
[1725978010211,0.42933,2329.1,2328.6,0.42941]
[1725978010508,0.42935,2329.0,2328.5,0.42942]
[1725978010808,0.42935,2329.0,2327.9,1.07387]
[1725978010809,10.62910669,2329.0,2327.8,4.1059]
[1725978011017,1.45092,2329.1,2327.8,4.1059]
[1725978011315,0.42945,2328.5,2328.0,0.42951]
[1725978011511,0.42945,2328.5,2327.8,4.1059]
[1725978011512,0.42947,2328.4,2327.8,3.71]
[1725978011714,0.42948,2328.3,2327.9,0.42954]
[1725978011912,7.854,2329.0,2328.1,0.4295]
[1725978011913,0.42943,2328.6,2328.1,0.4295]
[1725978012107,0.42943,2328.6,2327.7,0.7724]
[1725978012108,1.07351,2328.7,2327.7,0.7724]
[1725978012312,0.4295,2328.2,2327.8,0.42956]
[1725978013118,1.07364,2328.4,2327.6,0.42958]
[1725978013313,0.4296,2327.7,2327.3,4.61565]
[1725978013519,10.94950707,2328.1,2327.4,0.42964]
[1725978013520,0.42957,2327.8,2327.4,0.42964]
[1725978013814,4.144,2328.1,2327.2,0.7678]
[1725978013815,0.42959,2327.7,2327.2,0.7678]
[1725978014027,0.42961,2327.6,2327.2,0.42966]
[1725978014316,0.42961,2327.6,2327.2,0.42967]
[1725978014518,0.42959,2327.7,2327.3,0.42965]
[1725978014713,0.42961,2327.6,2327.2,0.42967]
[1725978015615,0.42961,2327.6,2326.8,4.5811]
[1725978015616,10.97477686,2327.9,2326.9,0.42972]
[1725978015817,10.55598172,2327.5,2327.1,0.42968]
[1725978016019,10.55598172,2327.8,2327.5,0.42961]
[1725978016220,0.42956,2327.8,2327.4,0.42963]
[1725978016414,0.42958,2327.7,2327.3,0.42965]
[1725978016620,0.42957,2327.8,2326.9,0.21498053]
[1725978016816,0.42959,2327.7,2327.3,0.42965]
[1725978017012,1.07396,2327.7,2326.8,0.3951]
[1725978017317,10.53962234,2327.6,2326.8,0.3951]
[1725978017513,0.42965,2327.4,2327.0,0.4297]
[1725978018015,10.53962234,2327.6,2327.5,0.42962]
[1725978018324,0.366,2327.9,2327.1,1.07424]
[1725978018720,10.77259383,2327.8,2327.6,0.42959]
[1725978019117,0.3897,2328.0,2327.2,1.74569919]
[1725978019319,0.3899,2328.4,2327.3,1.74564919]
[1725978019525,0.3899,2328.4,2328.0,0.42952]
[1725978019718,10.53574484,2328.2,2328.0,0.42952]
[1725978020217,0.3899,2328.4,2327.6,0.3854]
[1725978020418,1.50322,2328.2,2328.1,0.058798]
[1725978020620,1.50329,2328.1,2328.0,0.24174292]
[1725978020823,5.36898,2328.1,2327.0,0.7624]
[1725978021024,0.3814,2328.0,2327.0,0.7624]
[1725978021319,1.07392,2327.8,2327.0,0.7624]
[1725978021518,0.42961,2327.6,2327.3,0.42965]
[1725978021725,0.42961,2327.6,2327.3,0.42966]
[1725978021920,0.42963,2327.5,2327.1,0.42969]
[1725978022117,0.42963,2327.5,2326.5,7.896]
[1725978022118,0.42966,2327.3,2326.5,7.896]
[1725978022319,0.42965,2327.4,2327.1,0.42969]
[1725978022819,0.42965,2327.4,2327.1,0.42968]
[1725978022820,0.42964,2327.4,2327.1,0.42968]
[1725978023414,0.42966,2327.3,2326.7,1.07460069]
[1725978023615,0.42968,2327.2,2326.9,0.42972]
[1725978023811,0.42967,2327.3,2327.0,0.42971]
[1725978024127,1.07401,2327.6,2326.6,4.186]
[1725978024323,0.42967,2327.3,2327.0,0.42971]
[1725978024517,0.3831,2327.7,2326.6,4.186]
[1725978024518,0.42965,2327.4,2327.1,0.42968]
[1725978024729,10.71426854,2327.5,2326.6,4.186]
[1725978025020,0.42972,2327.0,2326.7,2.17610909]
[1725978025326,0.42976,2326.8,2326.5,0.3737]
[1725978025520,0.4298,2326.6,2326.2,0.42985]
[1725978025719,11.73671897,2326.9,2325.9,8.2925]
[1725978025720,0.42978,2326.7,2326.0,1.83529495]
[1725978025920,1.07433,2326.9,2326.1,0.67188841]
[1725978026223,1.07433,2326.9,2325.2,1.07512]
[1725978026224,0.42985,2326.3,2325.2,1.07512]
[1725978026422,1.07448,2326.6,2325.4,1.1913]
[1725978026720,0.42983,2326.4,2326.1,0.42987]
[1725978026929,0.42983,2326.4,2325.6,4.78493]
[1725978026930,0.42981,2326.5,2326.2,0.42985]
[1725978027115,0.42981,2326.5,2325.7,1.07488]
[1725978027430,0.4298,2326.6,2326.2,0.42985]
[1725978027623,0.4298,2326.6,2326.3,0.42984]
[1725978028122,10.93615826,2326.7,2325.6,3.71]
[1725978028326,10.93615826,2326.7,2325.9,1.07476]
[1725978028529,0.3717,2327.0,2326.1,1.0747]
[1725978028825,0.3717,2327.0,2326.0,0.781]
[1725978028826,10.94246777,2326.9,2326.7,0.42976]
[1725978029018,10.94246777,2326.9,2326.1,0.3943]
[1725978029019,0.42976,2326.8,2326.1,0.3943]
[1725978029221,10.94246777,2326.9,2326.7,0.42976]
[1725978029727,11.37221777,2326.9,2326.6,0.42977]
[1725978030218,10.94246777,2326.9,2326.8,0.42975]
[1725978030425,0.42968,2327.2,2327.0,0.4297]
[1725978030620,0.4045,2327.3,2326.5,1.07452]
[1725978030621,0.4045,2327.3,2327.1,0.42968]
[1725978030820,10.89374347,2327.3,2327.2,0.42967]
[1725978031015,10.89374347,2327.3,2326.6,0.7838]
[1725978031016,11.32341347,2327.3,2326.6,0.7838]
[1725978031219,11.32341347,2327.3,2327.1,0.42969]
[1725978031414,11.32341347,2327.3,2327.0,0.4297]
[1725978031614,10.89374347,2327.3,2327.2,0.42967]
[1725978032724,10.89374347,2327.3,2327.1,0.42968]
[1725978032725,11.32340347,2327.3,2327.1,0.42968]
[1725978032930,10.89374347,2327.3,2327.1,0.42969]
[1725978033124,11.32340347,2327.3,2327.1,0.42969]
[1725978033431,4.2968,2327.2,2326.6,4.9698]
[1725978033634,0.42971,2327.1,2326.8,0.42973]
[1725978033931,0.42969,2327.2,2326.6,0.7838]
[1725978034227,11.22910339,2327.2,2327.0,0.42971]
[1725978034438,0.42969,2327.1,2326.9,0.42972]
[1725978034628,10.79942339,2327.2,2326.6,0.7838]
[1725978034929,0.42971,2327.1,2326.9,0.42972]
[1725978035224,10.79942339,2327.2,2326.6,1.85825]
[1725978035430,10.79942339,2327.2,2326.9,0.42972]
[1725978035638,0.4297,2327.1,2326.9,0.42972]
[1725978035934,10.79942339,2327.2,2326.6,0.7838]
[1725978035935,15.09702339,2327.2,2326.8,0.42974]
[1725978036121,10.79942339,2327.2,2326.3,4.186]
[1725978036318,10.79942339,2327.2,2326.3,44.986]
[1725978036319,0.42974,2326.9,2326.3,44.986]
[1725978036526,0.42972,2327.0,2326.8,0.42974]
[1725978037332,0.42974,2326.9,2326.7,0.42976]
[1725978037728,0.42976,2326.8,2326.6,0.42978]
[1725978037933,0.42976,2326.8,2326.2,0.7696]
[1725978037934,11.00037077,2326.8,2326.2,0.7696]
[1725978038229,0.79958,2326.7,2326.5,0.4298]
[1725978039029,0.3698,2326.7,2326.6,0.42979]
[1725978039225,1.07424,2327.1,2326.3,1.28789043]
[1725978039426,0.42976,2326.8,2326.6,0.42978]
[1725978039738,0.42974,2326.9,2326.3,1.28883614]
[1725978039931,11.00376994,2327.0,2326.4,1.07456]
[1725978040120,0.42975,2326.8,2326.7,0.42975]
[1725978040325,0.42975,2326.8,2326.4,0.42982]
[1725978040326,1.0744,2326.8,2326.4,0.42982]
[1725978040525,4.2984,2326.7,2325.7,5.42494574]
[1725978040827,0.42983,2326.4,2325.9,1.07479]
[1725978041031,0.4026,2326.6,2326.0,3.3]
[1725978041219,1.07433,2326.9,2326.2,1.07466]
[1725978041424,0.42976,2326.8,2326.6,0.42977]
[1725978041620,0.42977,2326.8,2326.6,0.42978]
[1725978041831,0.42976,2326.8,2326.7,0.42977]
[1725978042033,0.42974,2326.9,2326.3,1.83289]
[1725978042236,0.42975,2326.8,2326.3,1.83289]
[1725978042535,1.45886,2327.1,2326.5,0.42979]
[1725978042536,0.42978,2326.7,2326.5,0.42979]
[1725978042726,0.42978,2326.7,2326.3,0.7583]
[1725978042921,0.42977,2326.7,2326.3,0.7583]
[1725978043124,11.77261541,2327.0,2326.6,0.42977]
[1725978043431,0.42979,2326.6,2326.4,0.42981]
[1725978043624,0.4298,2326.5,2326.4,0.42981]
[1725978043818,1.07433,2326.9,2326.3,0.3775]
[1725978044032,1.07433,2326.9,2326.1,0.3808]
[1725978044236,0.42978,2326.7,2326.5,0.42979]
[1725978044433,1.45886,2327.1,2326.6,0.42977]
[1725978044434,0.42976,2326.8,2326.6,0.42977]
[1725978044733,11.0457031,2326.8,2326.6,0.42977]
[1725978044922,15.3433031,2326.8,2326.6,0.42977]
[1725978045126,4.72736,2326.8,2326.6,0.42977]
[1725978045639,0.42976,2326.8,2326.7,0.42977]
[1725978045826,0.42976,2326.8,2326.6,0.42977]
[1725978046026,0.42977,2326.7,2326.2,1.47743]